[Event "Early-Titled-Tuesday-Blitz-November-28-2023"]
[Site "Chess.com"]
[Date "2023.11.28"]
[Round "1"]
[White "Krakozia"]
[Black "AleksanderHnydiuk"]
[Result "1-0"]
[WhiteElo "2951"]
[BlackElo "2504"]
[TimeControl "180+1"]
[EndTime "8:06:43 PST"]
[Termination "Krakozia won on time"]

1. e4 {[%clk 0:03:00.9]} 1... Nf6 {[%clk 0:02:51.7]} 2. e5 {[%clk 0:02:58.4]}
2... Nd5 {[%clk 0:02:51.9]} 3. d4 {[%clk 0:02:58.6]} 3... d6 {[%clk 0:02:52.3]}
4. Nf3 {[%clk 0:02:58]} 4... dxe5 {[%clk 0:02:52.1]} 5. Nxe5 {[%clk 0:02:57.4]}
5... c6 {[%clk 0:02:52.5]} 6. Nd2 {[%clk 0:02:55.9]} 6... Nd7 {[%clk 0:02:51.5]}
7. Ndf3 {[%clk 0:02:54.1]} 7... Nxe5 {[%clk 0:02:51.5]} 8. Nxe5 {[%clk
0:02:54.7]} 8... Bf5 {[%clk 0:02:51.2]} 9. g4 {[%clk 0:02:47.6]} 9... Be6 {[%clk
0:02:34.1]} 10. Bg2 {[%clk 0:02:46.2]} 10... g6 {[%clk 0:02:32]} 11. f4 {[%clk
0:02:44.4]} 11... Bg7 {[%clk 0:02:29]} 12. O-O {[%clk 0:02:44.9]} 12... f6
{[%clk 0:02:23.1]} 13. Nd3 {[%clk 0:02:40.7]} 13... Bf7 {[%clk 0:02:17.9]} 14.
f5 {[%clk 0:02:38.6]} 14... h5 {[%clk 0:02:08.7]} 15. fxg6 {[%clk 0:02:15.1]}
15... Bxg6 {[%clk 0:02:08.1]} 16. c4 {[%clk 0:02:15.5]} 16... Nb6 {[%clk
0:01:52.9]} 17. Nf4 {[%clk 0:02:14]} 17... Bf7 {[%clk 0:01:51.9]} 18. b3 {[%clk
0:02:10.2]} 18... hxg4 {[%clk 0:01:47.2]} 19. Be3 {[%clk 0:01:58.2]} 19... f5
{[%clk 0:01:44.3]} 20. Qd3 {[%clk 0:01:57.8]} 20... Qd7 {[%clk 0:01:41.1]} 21.
Rad1 {[%clk 0:01:56]} 21... O-O-O {[%clk 0:01:40.4]} 22. d5 {[%clk 0:01:54.8]}
22... cxd5 {[%clk 0:01:29.9]} 23. cxd5 {[%clk 0:01:52.9]} 23... Kb8 {[%clk
0:01:27.5]} 24. Qe2 {[%clk 0:01:43.3]} 24... Ka8 {[%clk 0:01:23.9]} 25. a4
{[%clk 0:01:41.1]} 25... Nc8 {[%clk 0:01:15.3]} 26. a5 {[%clk 0:01:39.8]} 26...
Nd6 {[%clk 0:01:10.8]} 27. a6 {[%clk 0:01:38.7]} 27... b6 {[%clk 0:01:09.6]} 28.
Ne6 {[%clk 0:01:37.6]} 28... Be5 {[%clk 0:00:43.1]} 29. Bf4 {[%clk 0:01:37.3]}
29... Bxf4 {[%clk 0:00:42.5]} 30. Rxf4 {[%clk 0:01:37.7]} 30... Rc8 {[%clk
0:00:38.5]} 31. Nd4 {[%clk 0:01:26.3]} 31... Rc3 {[%clk 0:00:21.2]} 32. Nxf5
{[%clk 0:01:20.7]} 32... Nxf5 {[%clk 0:00:14.6]} 33. d6+ {[%clk 0:01:19.6]}
33... Kb8 {[%clk 0:00:11.8]} 34. Qe4 {[%clk 0:01:18.5]} 34... Rf3 {[%clk
0:00:05.6]} 35. Rxf3 {[%clk 0:01:13.4]} 35... gxf3 {[%clk 0:00:06.5]} 36. Qxf3
{[%clk 0:01:11.8]} 36... Nxd6 {[%clk 0:00:01.9]} 37. Qa8+ {[%clk 0:01:09.6]}
37... Kc7 {[%clk 0:00:02.1]} 38. Qxa7+ {[%clk 0:01:05]} 38... Kd8 {[%clk
0:00:01.7]} 39. Qb8+ {[%clk 0:01:02.1]} 39... Qc8 {[%clk 0:00:01.8]} 40. a7
{[%clk 0:00:58.2]} 1-0

[Event "Early-Titled-Tuesday-Blitz-November-28-2023"]
[Site "Chess.com"]
[Date "2023.11.28"]
[Round "1"]
[White "DanylaBagrov"]
[Black "Ezov"]
[Result "1-0"]
[WhiteElo "2575"]
[BlackElo "2217"]
[TimeControl "180+1"]
[EndTime "8:06:43 PST"]
[Termination "DanylaBagrov won by resignation"]

1. d4 {[%clk 0:02:58.4]} 1... d5 {[%clk 0:02:58.4]} 2. c4 {[%clk 0:02:53.5]}
2... c6 {[%clk 0:02:57.8]} 3. Nf3 {[%clk 0:02:51]} 3... Nf6 {[%clk 0:02:56.7]}
4. Nc3 {[%clk 0:02:45]} 4... e6 {[%clk 0:02:56.1]} 5. e3 {[%clk 0:02:42.3]} 5...
Be7 {[%clk 0:02:55.3]} 6. g4 {[%clk 0:02:36]} 6... Ne4 {[%clk 0:02:48.6]} 7.
Nxe4 {[%clk 0:02:32.5]} 7... dxe4 {[%clk 0:02:49.5]} 8. Nd2 {[%clk 0:02:33.3]}
8... f5 {[%clk 0:02:47.7]} 9. Rg1 {[%clk 0:02:17.3]} 9... O-O {[%clk 0:02:43.9]}
10. b3 {[%clk 0:02:04]} 10... Bf6 {[%clk 0:02:37.2]} 11. Bb2 {[%clk 0:02:01.7]}
11... c5 {[%clk 0:02:34.5]} 12. g5 {[%clk 0:01:58.8]} 12... Bxg5 {[%clk
0:02:24.8]} 13. dxc5 {[%clk 0:01:59.2]} 13... Bf6 {[%clk 0:02:22.4]} 14. Qc2
{[%clk 0:01:58.4]} 14... Nc6 {[%clk 0:02:16.6]} 15. O-O-O {[%clk 0:01:37.3]}
15... Qa5 {[%clk 0:02:05.1]} 16. Bxf6 {[%clk 0:01:24]} 16... Rxf6 {[%clk
0:02:03.2]} 17. Qb2 {[%clk 0:01:13.3]} 17... Rf7 {[%clk 0:01:56.3]} 18. f3
{[%clk 0:01:11.5]} 18... Qxc5 {[%clk 0:01:46.6]} 19. fxe4 {[%clk 0:01:11.2]}
19... Qxe3 {[%clk 0:01:45.3]} 20. Rg3 {[%clk 0:01:11.8]} 20... Qf4 {[%clk
0:01:38.2]} 21. exf5 {[%clk 0:00:49]} 21... exf5 {[%clk 0:01:35.1]} 22. Bg2
{[%clk 0:00:49.2]} 22... Be6 {[%clk 0:01:27.2]} 23. Re1 {[%clk 0:00:49.2]} 23...
Re8 {[%clk 0:01:16.6]} 24. Rge3 {[%clk 0:00:40]} 24... Nd4 {[%clk 0:01:08.4]}
25. Bd5 {[%clk 0:00:40.3]} 25... Rfe7 {[%clk 0:01:02.8]} 26. Qc3 {[%clk
0:00:35]} 26... Kf7 {[%clk 0:00:45.9]} 27. Rf1 {[%clk 0:00:27]} 27... Qg5 {[%clk
0:00:40.8]} 28. Qxd4 {[%clk 0:00:22.2]} 28... Bxd5 {[%clk 0:00:39]} 29. Qxd5+
{[%clk 0:00:22.1]} 29... Kg6 {[%clk 0:00:31.2]} 30. Rg3 {[%clk 0:00:22.1]} 30...
Re1+ {[%clk 0:00:28.3]} 31. Rxe1 {[%clk 0:00:21]} 31... Rxe1+ {[%clk 0:00:29.2]}
32. Kc2 {[%clk 0:00:21.8]} 1-0

[Event "Early-Titled-Tuesday-Blitz-November-28-2023"]
[Site "Chess.com"]
[Date "2023.11.28"]
[Round "1"]
[White "Elsa167"]
[Black "Artem_Sadovsky"]
[Result "1-0"]
[WhiteElo "2900"]
[BlackElo "2496"]
[TimeControl "180+1"]
[EndTime "8:06:46 PST"]
[Termination "Elsa167 won on time"]

1. d4 {[%clk 0:02:55.1]} 1... g6 {[%clk 0:02:59.6]} 2. c4 {[%clk 0:02:52.5]}
2... Bg7 {[%clk 0:02:54.7]} 3. e4 {[%clk 0:02:52.5]} 3... d6 {[%clk 0:02:55.1]}
4. Nc3 {[%clk 0:02:52.6]} 4... e5 {[%clk 0:02:49.6]} 5. dxe5 {[%clk 0:02:51]}
5... dxe5 {[%clk 0:02:50.5]} 6. Qxd8+ {[%clk 0:02:51.5]} 6... Kxd8 {[%clk
0:02:50.8]} 7. f4 {[%clk 0:02:52.2]} 7... Nc6 {[%clk 0:02:49.5]} 8. Nf3 {[%clk
0:02:51.7]} 8... Nd4 {[%clk 0:02:49.5]} 9. Bd3 {[%clk 0:02:44.5]} 9... Nxf3+
{[%clk 0:02:47.3]} 10. gxf3 {[%clk 0:02:44.3]} 10... c6 {[%clk 0:02:46.8]} 11.
Be3 {[%clk 0:02:39.5]} 11... Be6 {[%clk 0:02:46.2]} 12. O-O-O {[%clk 0:02:32.6]}
12... exf4 {[%clk 0:02:46.3]} 13. Bxf4 {[%clk 0:02:31.1]} 13... Bh6 {[%clk
0:02:45.1]} 14. Bxh6 {[%clk 0:02:26.4]} 14... Nxh6 {[%clk 0:02:46]} 15. h4
{[%clk 0:02:09.3]} 15... Ke7 {[%clk 0:02:46.1]} 16. Kd2 {[%clk 0:02:07.6]} 16...
f6 {[%clk 0:02:42.9]} 17. Ke3 {[%clk 0:02:06.6]} 17... Nf7 {[%clk 0:02:43.4]}
18. c5 {[%clk 0:02:02.3]} 18... g5 {[%clk 0:02:35]} 19. Rh2 {[%clk 0:01:48.6]}
19... h5 {[%clk 0:02:33.9]} 20. Rdh1 {[%clk 0:01:46.3]} 20... g4 {[%clk
0:02:32.7]} 21. f4 {[%clk 0:01:42.2]} 21... Rhg8 {[%clk 0:02:28.4]} 22. a3
{[%clk 0:01:31.7]} 22... Rad8 {[%clk 0:02:24.6]} 23. Ne2 {[%clk 0:01:31.2]}
23... Nh6 {[%clk 0:01:31.6]} 24. Ng3 {[%clk 0:01:27]} 24... Bf7 {[%clk
0:01:31.4]} 25. Rd2 {[%clk 0:01:17.4]} 25... Rd7 {[%clk 0:01:21.7]} 26. Be2
{[%clk 0:01:08]} 26... Rxd2 {[%clk 0:01:20.8]} 27. Kxd2 {[%clk 0:01:08.9]} 27...
Rd8+ {[%clk 0:01:19.9]} 28. Ke3 {[%clk 0:01:09.5]} 28... Bg6 {[%clk 0:01:05]}
29. b4 {[%clk 0:01:03.7]} 29... f5 {[%clk 0:01:04.7]} 30. e5 {[%clk 0:00:58.7]}
30... Bf7 {[%clk 0:00:48.1]} 31. Bd3 {[%clk 0:00:54.7]} 31... Bg6 {[%clk
0:00:48.7]} 32. Rb1 {[%clk 0:00:53.8]} 32... a6 {[%clk 0:00:47.8]} 33. a4 {[%clk
0:00:54.1]} 33... Rd5 {[%clk 0:00:35.8]} 34. Bc4 {[%clk 0:00:49.3]} 34... Rd8
{[%clk 0:00:35.7]} 35. b5 {[%clk 0:00:49.4]} 35... axb5 {[%clk 0:00:30.5]} 36.
axb5 {[%clk 0:00:50.3]} 36... cxb5 {[%clk 0:00:31.4]} 37. Rxb5 {[%clk
0:00:50.8]} 37... Rd7 {[%clk 0:00:32]} 38. Rb6 {[%clk 0:00:50.9]} 38... Bf7
{[%clk 0:00:26.1]} 39. e6 {[%clk 0:00:50.8]} 1-0

[Event "Early-Titled-Tuesday-Blitz-November-28-2023"]
[Site "Chess.com"]
[Date "2023.11.28"]
[Round "1"]
[White "Fonsofan"]
[Black "OneTrickPony_82"]
[Result "1-0"]
[WhiteElo "2713"]
[BlackElo "2396"]
[TimeControl "180+1"]
[EndTime "8:06:47 PST"]
[Termination "Fonsofan won by resignation"]

1. e4 {[%clk 0:02:50.9]} 1... e5 {[%clk 0:03:00]} 2. Nf3 {[%clk 0:02:49.9]} 2...
Nc6 {[%clk 0:03:00.2]} 3. Nc3 {[%clk 0:02:50.5]} 3... Nf6 {[%clk 0:02:59.3]} 4.
h3 {[%clk 0:02:51.1]} 4... Bc5 {[%clk 0:02:57.5]} 5. Nxe5 {[%clk 0:02:50.1]}
5... Nxe5 {[%clk 0:02:57.7]} 6. d4 {[%clk 0:02:50.5]} 6... Bd6 {[%clk
0:02:58.1]} 7. dxe5 {[%clk 0:02:51.1]} 7... Bxe5 {[%clk 0:02:58.9]} 8. Bd3
{[%clk 0:02:51.3]} 8... d5 {[%clk 0:02:46]} 9. exd5 {[%clk 0:02:33.1]} 9... Nxd5
{[%clk 0:02:20.4]} 10. Nxd5 {[%clk 0:02:28.8]} 10... Qxd5 {[%clk 0:02:19.5]} 11.
O-O {[%clk 0:02:29.2]} 11... Be6 {[%clk 0:02:08.4]} 12. Re1 {[%clk 0:02:21.5]}
12... O-O-O {[%clk 0:01:58.8]} 13. Qe2 {[%clk 0:02:20]} 13... Bf6 {[%clk
0:01:47.7]} 14. Bf4 {[%clk 0:02:14.2]} 14... Rhe8 {[%clk 0:01:34.5]} 15. Be4
{[%clk 0:02:12.2]} 15... Qa5 {[%clk 0:01:28.3]} 16. c3 {[%clk 0:02:06.7]} 16...
Kb8 {[%clk 0:01:14.5]} 17. Qf3 {[%clk 0:01:53.9]} 17... Qb6 {[%clk 0:01:07.1]}
18. Bxh7 {[%clk 0:01:40.2]} 18... Bc8 {[%clk 0:00:21.1]} 19. Be4 {[%clk
0:01:28.6]} 19... Qxb2 {[%clk 0:00:16.1]} 20. Rab1 {[%clk 0:01:27.4]} 20... Qxc3
{[%clk 0:00:16.7]} 21. Be3 {[%clk 0:01:14]} 21... Rxe4 {[%clk 0:00:10.2]} 22.
Qxe4 {[%clk 0:01:12.5]} 22... b6 {[%clk 0:00:10.2]} 23. Rec1 {[%clk 0:01:09.9]}
23... Qa3 {[%clk 0:00:09.1]} 24. Bf4 {[%clk 0:01:09.3]} 24... Bb7 {[%clk
0:00:08.5]} 25. Qc4 {[%clk 0:01:03.9]} 25... Ka8 {[%clk 0:00:06.8]} 26. Bxc7
{[%clk 0:00:51.3]} 26... Rc8 {[%clk 0:00:06.2]} 27. Qxf7 {[%clk 0:00:51.9]}
27... Qa5 {[%clk 0:00:05.6]} 28. Bf4 {[%clk 0:00:50.9]} 28... Rd8 {[%clk
0:00:04]} 29. Rd1 {[%clk 0:00:48.7]} 29... Rc8 {[%clk 0:00:04.2]} 30. Rbc1
{[%clk 0:00:48.7]} 30... Rh8 {[%clk 0:00:02.8]} 31. Rd7 {[%clk 0:00:38.7]} 31...
Qa4 {[%clk 0:00:03]} 32. Rxb7 {[%clk 0:00:35.8]} 32... Qxf4 {[%clk 0:00:03]} 33.
Rxa7+ {[%clk 0:00:35.8]} 1-0

[Event "Early-Titled-Tuesday-Blitz-November-28-2023"]
[Site "Chess.com"]
[Date "2023.11.28"]
[Round "1"]
[White "GmSergioBarrientos"]
[Black "Arimin1329"]
[Result "1/2-1/2"]
[WhiteElo "2653"]
[BlackElo "2372"]
[TimeControl "180+1"]
[EndTime "8:06:47 PST"]
[Termination "Game drawn - insufficient material"]

1. d4 {[%clk 0:02:57.5]} 1... Nf6 {[%clk 0:02:57.3]} 2. c4 {[%clk 0:02:56.6]}
2... b6 {[%clk 0:02:57]} 3. a3 {[%clk 0:02:56.2]} 3... Bb7 {[%clk 0:02:57.5]} 4.
Nc3 {[%clk 0:02:56.4]} 4... e6 {[%clk 0:02:56.9]} 5. Nf3 {[%clk 0:02:56.6]} 5...
Be7 {[%clk 0:02:53]} 6. Qc2 {[%clk 0:02:56]} 6... d5 {[%clk 0:02:51.2]} 7. cxd5
{[%clk 0:02:55.7]} 7... exd5 {[%clk 0:02:51.2]} 8. g3 {[%clk 0:02:54]} 8... O-O
{[%clk 0:02:50.9]} 9. Bg2 {[%clk 0:02:54.6]} 9... Nbd7 {[%clk 0:02:51.3]} 10.
O-O {[%clk 0:02:55.5]} 10... c5 {[%clk 0:02:50.7]} 11. Bf4 {[%clk 0:02:53.7]}
11... Rc8 {[%clk 0:02:49.7]} 12. Rfd1 {[%clk 0:02:53.5]} 12... a6 {[%clk
0:02:36.5]} 13. Ne5 {[%clk 0:02:46]} 13... c4 {[%clk 0:02:18.5]} 14. e4 {[%clk
0:02:40.1]} 14... dxe4 {[%clk 0:02:16.9]} 15. Nxe4 {[%clk 0:02:39.7]} 15... Nxe4
{[%clk 0:02:16.4]} 16. Bxe4 {[%clk 0:02:40.6]} 16... Bxe4 {[%clk 0:02:15.2]} 17.
Qxe4 {[%clk 0:02:41.5]} 17... Nxe5 {[%clk 0:02:09.6]} 18. dxe5 {[%clk
0:02:38.8]} 18... Qe8 {[%clk 0:02:08.4]} 19. Rd5 {[%clk 0:02:32.6]} 19... Qc6
{[%clk 0:02:01.6]} 20. Rad1 {[%clk 0:02:31.3]} 20... b5 {[%clk 0:01:57.8]} 21.
Qf5 {[%clk 0:02:27.1]} 21... Rcd8 {[%clk 0:01:51.2]} 22. Rd7 {[%clk 0:02:22.1]}
22... Rxd7 {[%clk 0:01:37.9]} 23. Qxd7 {[%clk 0:02:20]} 23... Qxd7 {[%clk
0:01:32.3]} 24. Rxd7 {[%clk 0:02:19.6]} 24... Bc5 {[%clk 0:01:32.6]} 25. Kf1
{[%clk 0:02:12.7]} 25... Re8 {[%clk 0:01:27.4]} 26. h4 {[%clk 0:02:03.2]} 26...
h6 {[%clk 0:01:21.5]} 27. h5 {[%clk 0:02:02.9]} 27... Re6 {[%clk 0:01:18.4]} 28.
Rd5 {[%clk 0:02:00.1]} 28... Be7 {[%clk 0:01:16.7]} 29. Rd7 {[%clk 0:01:58.2]}
29... Kh7 {[%clk 0:01:08.2]} 30. Kg2 {[%clk 0:01:53.1]} 30... g6 {[%clk
0:01:06.6]} 31. hxg6+ {[%clk 0:01:52.9]} 31... Kxg6 {[%clk 0:01:07.2]} 32. Ra7
{[%clk 0:01:52]} 32... h5 {[%clk 0:01:02.7]} 33. Be3 {[%clk 0:01:51.1]} 33...
Kf5 {[%clk 0:00:56.9]} 34. f4 {[%clk 0:01:45.8]} 34... Ke4 {[%clk 0:00:54.8]}
35. Bf2 {[%clk 0:01:45.3]} 35... h4 {[%clk 0:00:50.2]} 36. gxh4 {[%clk
0:01:45.6]} 36... Kxf4 {[%clk 0:00:50.7]} 37. Bg3+ {[%clk 0:01:45.1]} 37... Kg4
{[%clk 0:00:50.5]} 38. Bf2 {[%clk 0:01:45.2]} 38... Rxe5 {[%clk 0:00:42.1]} 39.
Rxa6 {[%clk 0:01:40.2]} 39... Re2 {[%clk 0:00:42.7]} 40. Kf1 {[%clk 0:01:40.4]}
40... Rxb2 {[%clk 0:00:41.6]} 41. Bd4 {[%clk 0:01:38.3]} 41... Rb1+ {[%clk
0:00:37.1]} 42. Ke2 {[%clk 0:01:38.3]} 42... Bxh4 {[%clk 0:00:26.5]} 43. Ra7
{[%clk 0:01:38.5]} 43... f5 {[%clk 0:00:25]} 44. Rb7 {[%clk 0:01:37.3]} 44...
Rb3 {[%clk 0:00:23.2]} 45. Kd2 {[%clk 0:01:35.7]} 45... Bg3 {[%clk 0:00:21.4]}
46. Kc2 {[%clk 0:01:35.9]} 46... Kf3 {[%clk 0:00:20.5]} 47. Rf7 {[%clk
0:01:35.3]} 47... Ke4 {[%clk 0:00:20.6]} 48. Bc5 {[%clk 0:01:35.8]} 48... Be5
{[%clk 0:00:20.7]} 49. Re7 {[%clk 0:01:35.4]} 49... Kd5 {[%clk 0:00:21]} 50. Bb4
{[%clk 0:01:35.4]} 50... f4 {[%clk 0:00:21.4]} 51. Rd7+ {[%clk 0:01:35.8]} 51...
Ke4 {[%clk 0:00:21.4]} 52. Re7 {[%clk 0:01:35.8]} 52... Kf5 {[%clk 0:00:21.5]}
53. Rf7+ {[%clk 0:01:36]} 53... Kg4 {[%clk 0:00:21.9]} 54. Re7 {[%clk
0:01:36.3]} 54... Bd4 {[%clk 0:00:21.7]} 55. Re4 {[%clk 0:01:36.3]} 55... Be3
{[%clk 0:00:22]} 56. Bd6 {[%clk 0:01:35.3]} 56... Kf3 {[%clk 0:00:21.7]} 57. Re8
{[%clk 0:01:35.2]} 57... Ke2 {[%clk 0:00:21.9]} 58. Bxf4 {[%clk 0:01:34.9]}
58... Rxa3 {[%clk 0:00:21]} 59. Re5 {[%clk 0:01:34.9]} 59... Rb3 {[%clk
0:00:20.9]} 60. Bxe3 {[%clk 0:01:34.8]} 60... Rxe3 {[%clk 0:00:21.1]} 61. Rxb5
{[%clk 0:01:35.7]} 61... c3 {[%clk 0:00:21.3]} 62. Rd5 {[%clk 0:01:35.5]} 62...
Kf3 {[%clk 0:00:20.2]} 63. Rc5 {[%clk 0:01:34.9]} 63... Re2+ {[%clk 0:00:19.5]}
64. Kxc3 {[%clk 0:01:34.7]} 64... Re3+ {[%clk 0:00:19.9]} 65. Kc4 {[%clk
0:01:35.2]} 65... Re1 {[%clk 0:00:19.6]} 66. Kb5 {[%clk 0:01:36.1]} 66... Rb1+
{[%clk 0:00:19.6]} 67. Kc6 {[%clk 0:01:36.5]} 67... Re1 {[%clk 0:00:20.1]} 68.
Rf5+ {[%clk 0:01:36.5]} 68... Ke2 {[%clk 0:00:20.2]} 69. Re5+ {[%clk 0:01:37]}
69... Kd1 {[%clk 0:00:21.1]} 70. Rxe1+ {[%clk 0:01:37.5]} 70... Kxe1 {[%clk
0:00:21.2]} 1/2-1/2

[Event "Early-Titled-Tuesday-Blitz-November-28-2023"]
[Site "Chess.com"]
[Date "2023.11.28"]
[Round "1"]
[White "Mouse-Sleep"]
[Black "Akylbek2021"]
[Result "1-0"]
[WhiteElo "2571"]
[BlackElo "2211"]
[TimeControl "180+1"]
[EndTime "8:06:47 PST"]
[Termination "Mouse-Sleep won on time"]

1. Nf3 {[%clk 0:03:00.3]} 1... Nf6 {[%clk 0:02:59.6]} 2. c4 {[%clk 0:03:00.3]}
2... g6 {[%clk 0:02:58.8]} 3. Nc3 {[%clk 0:03:00.5]} 3... Bg7 {[%clk 0:02:57.6]}
4. e4 {[%clk 0:03:00.5]} 4... d6 {[%clk 0:02:57.4]} 5. d4 {[%clk 0:03:01]} 5...
O-O {[%clk 0:02:56.8]} 6. Be2 {[%clk 0:03:00.2]} 6... c5 {[%clk 0:02:54.8]} 7.
O-O {[%clk 0:02:59.4]} 7... Nbd7 {[%clk 0:02:50.4]} 8. d5 {[%clk 0:02:56.8]}
8... e6 {[%clk 0:02:49.2]} 9. dxe6 {[%clk 0:02:56.5]} 9... Nb6 {[%clk
0:02:27.3]} 10. exf7+ {[%clk 0:02:53.6]} 10... Rxf7 {[%clk 0:02:28.2]} 11. e5
{[%clk 0:02:46.1]} 11... Ne8 {[%clk 0:02:24.9]} 12. exd6 {[%clk 0:02:22.9]}
12... Qxd6 {[%clk 0:02:02.7]} 13. Nb5 {[%clk 0:02:11.2]} 13... Qxd1 {[%clk
0:01:55.7]} 14. Rxd1 {[%clk 0:02:12.1]} 14... Bg4 {[%clk 0:01:56.2]} 15. h3
{[%clk 0:02:00.7]} 15... Bxf3 {[%clk 0:01:56]} 16. Bxf3 {[%clk 0:02:01.6]} 16...
a6 {[%clk 0:01:45.9]} 17. Nd6 {[%clk 0:01:50.5]} 17... Nxd6 {[%clk 0:01:41.1]}
18. Rxd6 {[%clk 0:01:51.4]} 18... Nxc4 {[%clk 0:01:35.4]} 19. Rd1 {[%clk
0:01:31.2]} 19... Kh8 {[%clk 0:01:31.1]} 20. Rb1 {[%clk 0:01:23.5]} 20... Ne5
{[%clk 0:01:00.3]} 21. Be4 {[%clk 0:01:18.6]} 21... Raf8 {[%clk 0:00:55.4]} 22.
Be3 {[%clk 0:01:16.6]} 22... b6 {[%clk 0:00:51.5]} 23. b3 {[%clk 0:01:14.5]}
23... Rd7 {[%clk 0:00:45.1]} 24. Rxd7 {[%clk 0:01:10.8]} 24... Nxd7 {[%clk
0:00:46]} 25. Rd1 {[%clk 0:01:11.2]} 25... Ne5 {[%clk 0:00:28.1]} 26. Rd6 {[%clk
0:01:09.2]} 26... Rb8 {[%clk 0:00:28.4]} 27. Bf4 {[%clk 0:00:58.9]} 27... Rf8
{[%clk 0:00:24]} 28. Bg3 {[%clk 0:00:56.2]} 28... Re8 {[%clk 0:00:11.8]} 29. Bb7
{[%clk 0:00:43.9]} 29... b5 {[%clk 0:00:06.7]} 30. Bxa6 {[%clk 0:00:42.1]} 30...
c4 {[%clk 0:00:04.4]} 31. Bxb5 {[%clk 0:00:38.5]} 31... c3 {[%clk 0:00:03.7]}
32. Bxe8 {[%clk 0:00:35.6]} 32... c2 {[%clk 0:00:02]} 33. Bf4 {[%clk 0:00:36.2]}
1-0

[Event "Early-Titled-Tuesday-Blitz-November-28-2023"]
[Site "Chess.com"]
[Date "2023.11.28"]
[Round "1"]
[White "RodokininEV"]
[Black "acertijo08"]
[Result "1/2-1/2"]
[WhiteElo "2600"]
[BlackElo "2291"]
[TimeControl "180+1"]
[EndTime "8:06:49 PST"]
[Termination "Game drawn by repetition"]

1. d4 {[%clk 0:03:00.9]} 1... Nf6 {[%clk 0:02:59.6]} 2. c4 {[%clk 0:03:00.8]}
2... e6 {[%clk 0:02:59.6]} 3. Nf3 {[%clk 0:03:00.1]} 3... c5 {[%clk 0:02:59]} 4.
d5 {[%clk 0:02:59.1]} 4... exd5 {[%clk 0:02:59.3]} 5. cxd5 {[%clk 0:03:00]} 5...
d6 {[%clk 0:02:59.8]} 6. g3 {[%clk 0:02:56]} 6... g6 {[%clk 0:02:59.6]} 7. Bg2
{[%clk 0:02:56.1]} 7... Bg7 {[%clk 0:02:59.9]} 8. O-O {[%clk 0:02:56.1]} 8... a6
{[%clk 0:03:00.6]} 9. a4 {[%clk 0:02:55.6]} 9... O-O {[%clk 0:03:00.5]} 10. Nc3
{[%clk 0:02:51.2]} 10... Re8 {[%clk 0:03:00.5]} 11. Nd2 {[%clk 0:02:50.4]} 11...
Nbd7 {[%clk 0:03:00.1]} 12. Nc4 {[%clk 0:02:48.8]} 12... Ne5 {[%clk 0:03:00]}
13. Na3 {[%clk 0:02:48.8]} 13... Nh5 {[%clk 0:02:58.1]} 14. h3 {[%clk
0:02:42.7]} 14... Rb8 {[%clk 0:02:57.4]} 15. Kh2 {[%clk 0:02:34.2]} 15... Bd7
{[%clk 0:02:55.9]} 16. f4 {[%clk 0:02:33]} 16... b5 {[%clk 0:02:53.3]} 17. Ne4
{[%clk 0:02:16.4]} 17... b4 {[%clk 0:02:28.4]} 18. fxe5 {[%clk 0:01:43.1]} 18...
bxa3 {[%clk 0:02:23]} 19. Rxa3 {[%clk 0:01:44]} 19... Bxe5 {[%clk 0:02:21.4]}
20. Ng5 {[%clk 0:01:43.6]} 20... Bxb2 {[%clk 0:01:48.3]} 21. Bxb2 {[%clk
0:01:34]} 21... Rxb2 {[%clk 0:01:47.5]} 22. Nxf7 {[%clk 0:01:31.7]} 22... Qe7
{[%clk 0:01:21.5]} 23. Nh6+ {[%clk 0:01:26.6]} 23... Kh8 {[%clk 0:01:20.3]} 24.
Rf2 {[%clk 0:01:10.9]} 24... Rf8 {[%clk 0:01:08.4]} 25. Rxf8+ {[%clk 0:00:59.9]}
25... Qxf8 {[%clk 0:01:08.6]} 26. Qa1 {[%clk 0:01:00.8]} 26... Qf6 {[%clk
0:00:57.6]} 27. Rf3 {[%clk 0:00:55]} 27... Qd4 {[%clk 0:00:45.5]} 28. Rf7 {[%clk
0:00:32.9]} 28... Rxe2 {[%clk 0:00:29.7]} 29. Qxd4+ {[%clk 0:00:33]} 29... cxd4
{[%clk 0:00:30]} 30. Rxd7 {[%clk 0:00:33.9]} 30... d3 {[%clk 0:00:25.8]} 31.
Nf7+ {[%clk 0:00:29.7]} 31... Kg8 {[%clk 0:00:23.5]} 32. Nh6+ {[%clk 0:00:19.9]}
32... Kh8 {[%clk 0:00:20.5]} 33. Nf7+ {[%clk 0:00:16.7]} 33... Kg8 {[%clk
0:00:20.7]} 34. Nh6+ {[%clk 0:00:16.9]} 34... Kh8 {[%clk 0:00:19.4]} 1/2-1/2

[Event "Early-Titled-Tuesday-Blitz-November-28-2023"]
[Site "Chess.com"]
[Date "2023.11.28"]
[Round "1"]
[White "BigAl"]
[Black "Sconko"]
[Result "1-0"]
[WhiteElo "2555"]
[BlackElo "2176"]
[TimeControl "180+1"]
[EndTime "8:06:51 PST"]
[Termination "BigAl won by checkmate"]

1. Nf3 {[%clk 0:02:56.9]} 1... Nf6 {[%clk 0:02:59.2]} 2. g3 {[%clk 0:02:56.9]}
2... g6 {[%clk 0:02:58.8]} 3. Bg2 {[%clk 0:02:57.3]} 3... Bg7 {[%clk 0:02:58.9]}
4. O-O {[%clk 0:02:58.2]} 4... O-O {[%clk 0:02:53.1]} 5. d3 {[%clk 0:02:59.1]}
5... c5 {[%clk 0:02:45.1]} 6. e4 {[%clk 0:02:58.7]} 6... d6 {[%clk 0:02:44.2]}
7. e5 {[%clk 0:02:58.3]} 7... Nfd7 {[%clk 0:02:17.4]} 8. exd6 {[%clk 0:02:57.1]}
8... exd6 {[%clk 0:02:18.3]} 9. Nc3 {[%clk 0:02:55.8]} 9... Nc6 {[%clk
0:02:15.5]} 10. Bg5 {[%clk 0:02:46.4]} 10... Qa5 {[%clk 0:02:05.4]} 11. Nd2
{[%clk 0:02:31.9]} 11... Nde5 {[%clk 0:01:48.8]} 12. Nc4 {[%clk 0:02:17.7]}
12... Nxc4 {[%clk 0:01:47]} 13. dxc4 {[%clk 0:02:17.1]} 13... Nd4 {[%clk
0:01:43.3]} 14. Nd5 {[%clk 0:02:11]} 14... h6 {[%clk 0:01:39.5]} 15. Bf4 {[%clk
0:02:03]} 15... Qd8 {[%clk 0:01:22.5]} 16. c3 {[%clk 0:01:57.1]} 16... Ne6
{[%clk 0:01:20.8]} 17. Be3 {[%clk 0:01:56.1]} 17... Bd7 {[%clk 0:01:16.5]} 18.
Qd2 {[%clk 0:01:53.6]} 18... Kh7 {[%clk 0:01:15.3]} 19. Rad1 {[%clk 0:01:44.9]}
19... Bc6 {[%clk 0:01:15.5]} 20. h4 {[%clk 0:01:39.1]} 20... f5 {[%clk
0:01:00.2]} 21. b4 {[%clk 0:01:31.3]} 21... Qd7 {[%clk 0:00:49.8]} 22. b5 {[%clk
0:01:23.2]} 22... Bxd5 {[%clk 0:00:49.7]} 23. Bxd5 {[%clk 0:01:09.3]} 23... Rad8
{[%clk 0:00:44.9]} 24. Rfe1 {[%clk 0:01:06.6]} 24... Rfe8 {[%clk 0:00:30.3]} 25.
h5 {[%clk 0:00:50]} 25... g5 {[%clk 0:00:29.9]} 26. Qc2 {[%clk 0:00:49.8]} 26...
Nf8 {[%clk 0:00:28.7]} 27. g4 {[%clk 0:00:43.2]} 27... Re5 {[%clk 0:00:26]} 28.
gxf5 {[%clk 0:00:40.9]} 28... Bf6 {[%clk 0:00:24.7]} 29. f4 {[%clk 0:00:33.3]}
29... gxf4 {[%clk 0:00:20.6]} 30. Bxf4 {[%clk 0:00:33.7]} 30... Qg7+ {[%clk
0:00:21.3]} 31. Qg2 {[%clk 0:00:27.2]} 31... Rxe1+ {[%clk 0:00:19.2]} 32. Rxe1
{[%clk 0:00:27.2]} 32... Bxc3 {[%clk 0:00:19.3]} 33. Qxg7+ {[%clk 0:00:20.3]}
33... Kxg7 {[%clk 0:00:19.5]} 34. Re7+ {[%clk 0:00:21]} 34... Kf6 {[%clk
0:00:19.8]} 35. Rf7# {[%clk 0:00:21.1]} 1-0